[Event "*** SCC Grand Prix: Titled Tuesday Blitz"]
[Site "Chess.com"]
[Date "2020.07.21"]
[Round "4"]
[White "Onegust"]
[Black "Chessbard1972"]
[Result "1-0"]
[WhiteElo "2581"]
[BlackElo "2311"]
[TimeControl "180+1"]
[EndTime "10:40:06 PDT"]
[Termination "Onegust won by checkmate"]

1. e4 {[%clk 0:02:58]} 1... c5 {[%clk 0:02:57.1]} 2. Nf3 {[%clk 0:02:58.1]} 2...
a6 {[%clk 0:02:56.7]} 3. c3 {[%clk 0:02:57.8]} 3... d5 {[%clk 0:02:55.7]} 4.
exd5 {[%clk 0:02:58.7]} 4... Qxd5 {[%clk 0:02:56]} 5. d4 {[%clk 0:02:58.6]} 5...
Nf6 {[%clk 0:02:56.5]} 6. Be3 {[%clk 0:02:55.6]} 6... cxd4 {[%clk 0:02:55.1]} 7.
cxd4 {[%clk 0:02:51.4]} 7... Bg4 {[%clk 0:02:53.9]} 8. Be2 {[%clk 0:02:49.4]}
8... e6 {[%clk 0:02:53.1]} 9. Nc3 {[%clk 0:02:49.8]} 9... Qd6 {[%clk 0:02:52.6]}
10. Qb3 {[%clk 0:02:47.6]} 10... Qb4 {[%clk 0:02:50.6]} 11. Qc2 {[%clk
0:02:41.4]} 11... Nc6 {[%clk 0:02:48.3]} 12. O-O {[%clk 0:02:39.3]} 12... Be7
{[%clk 0:02:45.2]} 13. Rfe1 {[%clk 0:02:25.7]} 13... O-O {[%clk 0:02:41.8]} 14.
a3 {[%clk 0:02:20.1]} 14... Qd6 {[%clk 0:02:38.2]} 15. Rad1 {[%clk 0:02:17.4]}
15... Rfd8 {[%clk 0:02:35.1]} 16. h3 {[%clk 0:02:16]} 16... Bh5 {[%clk
0:02:32.2]} 17. Ng5 {[%clk 0:01:51.6]} 17... Bg6 {[%clk 0:02:24.3]} 18. Bd3
{[%clk 0:01:50.8]} 18... Bxd3 {[%clk 0:02:21]} 19. Rxd3 {[%clk 0:01:39.9]} 19...
h6 {[%clk 0:02:16.3]} 20. Nge4 {[%clk 0:01:28.8]} 20... Nxe4 {[%clk 0:02:15.1]}
21. Nxe4 {[%clk 0:01:29.7]} 21... Qd5 {[%clk 0:02:14.8]} 22. Nc3 {[%clk
0:01:29.7]} 22... Qf5 {[%clk 0:02:13.2]} 23. Qd2 {[%clk 0:01:25.2]} 23... Bf6
{[%clk 0:02:03.7]} 24. Rd1 {[%clk 0:01:23.7]} 24... Rd7 {[%clk 0:01:56]} 25. Na4
{[%clk 0:01:06.9]} 25... Rad8 {[%clk 0:01:40.7]} 26. Nc5 {[%clk 0:01:05.1]}
26... Re7 {[%clk 0:01:29]} 27. b4 {[%clk 0:01:03.4]} 27... b6 {[%clk 0:01:18.1]}
28. Na4 {[%clk 0:00:57.4]} 28... Rb7 {[%clk 0:01:01.8]} 29. d5 {[%clk
0:00:56.7]} 29... Ne5 {[%clk 0:00:57.2]} 30. Rd4 {[%clk 0:00:52.8]} 30... Ng6
{[%clk 0:00:47.1]} 31. Rd3 {[%clk 0:00:36.4]} 31... e5 {[%clk 0:00:37.4]} 32.
Bxb6 {[%clk 0:00:32.6]} 32... Rdb8 {[%clk 0:00:34.3]} 33. Be3 {[%clk 0:00:29.6]}
33... e4 {[%clk 0:00:30.7]} 34. Rb3 {[%clk 0:00:28.8]} 34... Be5 {[%clk
0:00:28.7]} 35. Nc5 {[%clk 0:00:27.9]} 35... Nf4 {[%clk 0:00:22]} 36. Bxf4
{[%clk 0:00:25.4]} 36... Bxf4 {[%clk 0:00:20.9]} 37. Qd4 {[%clk 0:00:20.6]}
37... Rb6 {[%clk 0:00:19.9]} 38. Qxe4 {[%clk 0:00:19.8]} 38... Qg5 {[%clk
0:00:18]} 39. Rbd3 {[%clk 0:00:15.7]} 39... Rg6 {[%clk 0:00:16.7]} 40. d6 {[%clk
0:00:13]} 40... f5 {[%clk 0:00:16.5]} 41. Qf3 {[%clk 0:00:12.9]} 41... Rd8
{[%clk 0:00:15.9]} 42. d7 {[%clk 0:00:12.9]} 42... Bc7 {[%clk 0:00:14.6]} 43.
Nb7 {[%clk 0:00:09.9]} 43... Re6 {[%clk 0:00:12]} 44. Nxd8 {[%clk 0:00:08.1]}
44... Bxd8 {[%clk 0:00:12.4]} 45. Re3 {[%clk 0:00:08.1]} 45... Rxe3 {[%clk
0:00:09.1]} 46. Qxe3 {[%clk 0:00:09]} 46... Qg6 {[%clk 0:00:08.5]} 47. Qe8+
{[%clk 0:00:08.5]} 47... Kh7 {[%clk 0:00:09]} 48. Qxg6+ {[%clk 0:00:08.2]} 48...
Kxg6 {[%clk 0:00:09]} 49. Re1 {[%clk 0:00:09.1]} 49... Kf7 {[%clk 0:00:08.9]}
50. Re8 {[%clk 0:00:10]} 50... Bf6 {[%clk 0:00:08.4]} 51. d8=Q {[%clk
0:00:10.2]} 51... Bxd8 {[%clk 0:00:09.3]} 52. Rxd8 {[%clk 0:00:11.1]} 52... g5
{[%clk 0:00:08.5]} 53. Ra8 {[%clk 0:00:12]} 53... f4 {[%clk 0:00:09.4]} 54. Rxa6
{[%clk 0:00:12.7]} 54... g4 {[%clk 0:00:10.3]} 55. Ra7+ {[%clk 0:00:13.6]} 55...
Kf6 {[%clk 0:00:08.7]} 56. hxg4 {[%clk 0:00:14.5]} 56... Kg5 {[%clk 0:00:09.4]}
57. Ra5+ {[%clk 0:00:15.4]} 57... Kxg4 {[%clk 0:00:09.6]} 58. Kh2 {[%clk
0:00:15.8]} 58... h5 {[%clk 0:00:08.4]} 59. Rd5 {[%clk 0:00:13.6]} 59... Kh4
{[%clk 0:00:07.3]} 60. g3+ {[%clk 0:00:12.2]} 60... Kg4 {[%clk 0:00:06.8]} 61.
Rd4 {[%clk 0:00:09.4]} 61... Kf3 {[%clk 0:00:03.1]} 62. Rxf4+ {[%clk 0:00:09.2]}
62... Ke2 {[%clk 0:00:04]} 63. b5 {[%clk 0:00:09.3]} 63... Kf1 {[%clk
0:00:04.9]} 64. b6 {[%clk 0:00:09.1]} 64... Ke2 {[%clk 0:00:05.8]} 65. b7 {[%clk
0:00:10]} 65... Kd3 {[%clk 0:00:06.7]} 66. b8=Q {[%clk 0:00:10]} 66... Kc3
{[%clk 0:00:07.6]} 67. Qc7+ {[%clk 0:00:09.7]} 67... Kd3 {[%clk 0:00:08.5]} 68.
Qc4+ {[%clk 0:00:09.8]} 68... Kd2 {[%clk 0:00:09.4]} 69. Re4 {[%clk 0:00:09.3]}
69... Kd1 {[%clk 0:00:08.8]} 70. Re2 {[%clk 0:00:09.3]} 70... h4 {[%clk
0:00:06.8]} 71. Qc2# {[%clk 0:00:10.2]} 1-0

[Event "*** SCC Grand Prix: Titled Tuesday Blitz"]
[Site "Chess.com"]
[Date "2020.07.21"]
[Round "4"]
[White "XiaoKangZhong"]
[Black "alexrustemov"]
[Result "0-1"]
[WhiteElo "2350"]
[BlackElo "2687"]
[TimeControl "180+1"]
[EndTime "10:40:06 PDT"]
[Termination "alexrustemov won by checkmate"]

1. e4 {[%clk 0:03:00.1]} 1... e6 {[%clk 0:02:59.5]} 2. d4 {[%clk 0:02:59]} 2...
d5 {[%clk 0:03:00.4]} 3. Nd2 {[%clk 0:02:59]} 3... c5 {[%clk 0:02:58.5]} 4. exd5
{[%clk 0:02:58.3]} 4... Qxd5 {[%clk 0:02:56.2]} 5. Ngf3 {[%clk 0:02:58.3]} 5...
cxd4 {[%clk 0:02:55.5]} 6. Bc4 {[%clk 0:02:56.2]} 6... Qd7 {[%clk 0:02:55.9]} 7.
O-O {[%clk 0:02:54.3]} 7... Nf6 {[%clk 0:02:55.6]} 8. Nb3 {[%clk 0:02:52.6]}
8... Nc6 {[%clk 0:02:53.7]} 9. Nbxd4 {[%clk 0:02:51.3]} 9... Nxd4 {[%clk
0:02:52.9]} 10. Nxd4 {[%clk 0:02:47.2]} 10... a6 {[%clk 0:02:53.1]} 11. Be3
{[%clk 0:02:43.4]} 11... b5 {[%clk 0:02:50.7]} 12. Be2 {[%clk 0:02:43]} 12...
Bb7 {[%clk 0:02:51.2]} 13. Bf3 {[%clk 0:02:43.3]} 13... Rd8 {[%clk 0:02:49.2]}
14. a4 {[%clk 0:02:22.2]} 14... b4 {[%clk 0:02:45.8]} 15. Nb3 {[%clk 0:02:13.5]}
15... Qxd1 {[%clk 0:02:30]} 16. Bxd1 {[%clk 0:02:05.6]} 16... Bd6 {[%clk
0:02:03.2]} 17. Be2 {[%clk 0:01:47.1]} 17... Nd5 {[%clk 0:01:40.7]} 18. Bc5
{[%clk 0:01:44.2]} 18... Ke7 {[%clk 0:01:24.6]} 19. Rfd1 {[%clk 0:01:33.9]}
19... Rc8 {[%clk 0:01:07.1]} 20. Bxd6+ {[%clk 0:01:30.2]} 20... Kxd6 {[%clk
0:01:08]} 21. Rac1 {[%clk 0:01:28.7]} 21... Rc7 {[%clk 0:01:04.2]} 22. c4 {[%clk
0:01:27.2]} 22... bxc3 {[%clk 0:01:03]} 23. bxc3 {[%clk 0:01:27.7]} 23... Ke7
{[%clk 0:01:02]} 24. c4 {[%clk 0:01:23.7]} 24... Nf4 {[%clk 0:00:37.3]} 25. Bf1
{[%clk 0:01:21.2]} 25... Rhc8 {[%clk 0:00:35.4]} 26. Na5 {[%clk 0:01:11.1]}
26... Bxg2 {[%clk 0:00:33.2]} 27. Bxg2 {[%clk 0:01:05.7]} 27... Ne2+ {[%clk
0:00:33.7]} 28. Kf1 {[%clk 0:01:05.6]} 28... Nxc1 {[%clk 0:00:34.4]} 29. Rxc1
{[%clk 0:01:06.4]} 29... Rc5 {[%clk 0:00:34.9]} 30. Nb3 {[%clk 0:00:30.2]} 30...
Rxc4 {[%clk 0:00:34.5]} 31. Ra1 {[%clk 0:00:30.8]} 31... Rb4 {[%clk 0:00:32.1]}
32. Nd2 {[%clk 0:00:24.5]} 32... Rc2 {[%clk 0:00:31.8]} 33. Ke2 {[%clk
0:00:24.8]} 33... Rbb2 {[%clk 0:00:29.4]} 34. Rd1 {[%clk 0:00:24.8]} 34... Ra2
{[%clk 0:00:27.9]} 35. Be4 {[%clk 0:00:23.3]} 35... Rcb2 {[%clk 0:00:27.6]} 36.
Ke3 {[%clk 0:00:15.6]} 36... f5 {[%clk 0:00:24.8]} 37. Bd3 {[%clk 0:00:12.9]}
37... Rxa4 {[%clk 0:00:23.1]} 38. Rc1 {[%clk 0:00:13.2]} 38... Rb7 {[%clk
0:00:13.4]} 39. Nc4 {[%clk 0:00:10.5]} 39... Rc7 {[%clk 0:00:12.5]} 40. Rc2
{[%clk 0:00:07.2]} 40... Kf6 {[%clk 0:00:12.4]} 41. f4 {[%clk 0:00:07.3]} 41...
a5 {[%clk 0:00:12]} 42. Ne5 {[%clk 0:00:05]} 42... Rxc2 {[%clk 0:00:11]} 43.
Bxc2 {[%clk 0:00:05.9]} 43... Ra3+ {[%clk 0:00:11.4]} 44. Bd3 {[%clk 0:00:06]}
44... a4 {[%clk 0:00:10.5]} 45. Nf3 {[%clk 0:00:05.9]} 45... Ra1 {[%clk
0:00:09.4]} 46. Kd2 {[%clk 0:00:05.5]} 46... a3 {[%clk 0:00:09.4]} 47. Bc4
{[%clk 0:00:03.4]} 47... h6 {[%clk 0:00:08.3]} 48. Kc3 {[%clk 0:00:02.3]} 48...
Rb1 {[%clk 0:00:05.9]} 49. Nd4 {[%clk 0:00:01.6]} 49... Rb2 {[%clk 0:00:05.6]}
50. Ne2 {[%clk 0:00:01.9]} 50... Rb1 {[%clk 0:00:04.4]} 51. Nd4 {[%clk
0:00:01.7]} 51... Rh1 {[%clk 0:00:04]} 52. Nc2 {[%clk 0:00:02.2]} 52... Rxh2
{[%clk 0:00:04.1]} 53. Nxa3 {[%clk 0:00:02.6]} 53... Rh3+ {[%clk 0:00:03.7]} 54.
Bd3 {[%clk 0:00:02.7]} 54... Rf3 {[%clk 0:00:04.6]} 55. Nc2 {[%clk 0:00:01.9]}
55... Rxf4 {[%clk 0:00:05.5]} 56. Nd4 {[%clk 0:00:02.6]} 56... g5 {[%clk
0:00:03.5]} 57. Ne2 {[%clk 0:00:03.5]} 57... Ke5 {[%clk 0:00:03.1]} 58. Kd2
{[%clk 0:00:03.6]} 58... g4 {[%clk 0:00:03]} 59. Nxf4 {[%clk 0:00:02.4]} 59...
Kxf4 {[%clk 0:00:03.9]} 60. Ke2 {[%clk 0:00:03.2]} 60... e5 {[%clk 0:00:04.2]}
61. Kf2 {[%clk 0:00:03.5]} 61... e4 {[%clk 0:00:05.1]} 62. Be2 {[%clk 0:00:04]}
62... h5 {[%clk 0:00:05.9]} 63. Bf1 {[%clk 0:00:04.3]} 63... h4 {[%clk
0:00:06.8]} 64. Bg2 {[%clk 0:00:03.6]} 64... Kg5 {[%clk 0:00:07.7]} 65. Bf1
{[%clk 0:00:03.6]} 65... Kf4 {[%clk 0:00:07.9]} 66. Kg2 {[%clk 0:00:03.6]} 66...
Ke5 {[%clk 0:00:08.4]} 67. Kf2 {[%clk 0:00:04.1]} 67... f4 {[%clk 0:00:08.7]}
68. Ke2 {[%clk 0:00:04.7]} 68... g3 {[%clk 0:00:08.4]} 69. Bh3 {[%clk
0:00:04.7]} 69... Kd4 {[%clk 0:00:08.1]} 70. Kd2 {[%clk 0:00:04.8]} 70... f3
{[%clk 0:00:08.6]} 71. Ke1 {[%clk 0:00:02.5]} 71... e3 {[%clk 0:00:08.6]} 72.
Kf1 {[%clk 0:00:02.6]} 72... Ke4 {[%clk 0:00:09.5]} 73. Ke1 {[%clk 0:00:02.9]}
73... Kf4 {[%clk 0:00:09.8]} 74. Kf1 {[%clk 0:00:03.3]} 74... e2+ {[%clk
0:00:09.4]} 75. Ke1 {[%clk 0:00:03.7]} 75... Ke3 {[%clk 0:00:10.1]} 76. Bf1
{[%clk 0:00:03.2]} 76... f2# {[%clk 0:00:09.9]} 0-1

[Event "*** SCC Grand Prix: Titled Tuesday Blitz"]
[Site "Chess.com"]
[Date "2020.07.21"]
[Round "4"]
[White "VovenRogel"]
[Black "gena217"]
[Result "1-0"]
[WhiteElo "2753"]
[BlackElo "2901"]
[TimeControl "180+1"]
[EndTime "10:40:08 PDT"]
[Termination "VovenRogel won by checkmate"]

1. d4 {[%clk 0:02:34.9]} 1... Nf6 {[%clk 0:02:59.3]} 2. c4 {[%clk 0:02:34.7]}
2... e6 {[%clk 0:02:59]} 3. Nf3 {[%clk 0:02:34.9]} 3... d5 {[%clk 0:02:58.6]} 4.
e3 {[%clk 0:02:34.3]} 4... b6 {[%clk 0:02:56.7]} 5. Nc3 {[%clk 0:02:33.9]} 5...
Bb7 {[%clk 0:02:57.1]} 6. Be2 {[%clk 0:02:30.3]} 6... Bd6 {[%clk 0:02:57]} 7.
O-O {[%clk 0:02:29.5]} 7... O-O {[%clk 0:02:56.9]} 8. b3 {[%clk 0:02:29.7]} 8...
Nbd7 {[%clk 0:02:51]} 9. Nb5 {[%clk 0:02:26.9]} 9... Be7 {[%clk 0:02:50.4]} 10.
Bb2 {[%clk 0:02:26.8]} 10... a6 {[%clk 0:02:45.2]} 11. Nc3 {[%clk 0:02:26.6]}
11... Bd6 {[%clk 0:02:44.5]} 12. Rc1 {[%clk 0:02:22.3]} 12... Qe7 {[%clk
0:02:36.4]} 13. Qc2 {[%clk 0:02:19.3]} 13... Rac8 {[%clk 0:02:21.2]} 14. Rfd1
{[%clk 0:02:18.5]} 14... h6 {[%clk 0:02:14.1]} 15. Qb1 {[%clk 0:02:18.2]} 15...
Rfe8 {[%clk 0:01:59.3]} 16. cxd5 {[%clk 0:01:56.7]} 16... exd5 {[%clk
0:01:58.7]} 17. Qf5 {[%clk 0:01:56]} 17... g6 {[%clk 0:01:54.3]} 18. Qh3 {[%clk
0:01:55.3]} 18... h5 {[%clk 0:01:53.7]} 19. Bd3 {[%clk 0:01:50.3]} 19... Ne4
{[%clk 0:01:48.1]} 20. Bb1 {[%clk 0:01:40.5]} 20... Rcd8 {[%clk 0:01:27.8]} 21.
Qh4 {[%clk 0:01:26.1]} 21... Qxh4 {[%clk 0:01:08.8]} 22. Nxh4 {[%clk 0:01:27]}
22... Ndf6 {[%clk 0:01:04.9]} 23. h3 {[%clk 0:01:24.6]} 23... c6 {[%clk
0:01:00.8]} 24. Nf3 {[%clk 0:01:24.2]} 24... a5 {[%clk 0:00:59.5]} 25. Na4
{[%clk 0:01:13.3]} 25... Nd7 {[%clk 0:00:56.6]} 26. Nd2 {[%clk 0:01:02]} 26...
Nxd2 {[%clk 0:00:53.1]} 27. Rxd2 {[%clk 0:01:02.9]} 27... Rc8 {[%clk 0:00:45.7]}
28. Bd3 {[%clk 0:01:01.8]} 28... b5 {[%clk 0:00:43.8]} 29. Nc3 {[%clk
0:00:57.4]} 29... Kf8 {[%clk 0:00:38.2]} 30. Rdc2 {[%clk 0:00:57.1]} 30... Nb6
{[%clk 0:00:34.4]} 31. a4 {[%clk 0:00:52.7]} 31... b4 {[%clk 0:00:29.7]} 32. Nb1
{[%clk 0:00:52.5]} 32... Nd7 {[%clk 0:00:29.7]} 33. Nd2 {[%clk 0:00:50.5]} 33...
f5 {[%clk 0:00:25.5]} 34. Nf3 {[%clk 0:00:47.1]} 34... Ke7 {[%clk 0:00:25.8]}
35. g3 {[%clk 0:00:44.4]} 35... Rc7 {[%clk 0:00:20.4]} 36. Nh4 {[%clk 0:00:34]}
36... Kf7 {[%clk 0:00:18.6]} 37. Kg2 {[%clk 0:00:30.3]} 37... Rec8 {[%clk
0:00:18.4]} 38. g4 {[%clk 0:00:27.2]} 38... hxg4 {[%clk 0:00:14.8]} 39. hxg4
{[%clk 0:00:27.3]} 39... fxg4 {[%clk 0:00:15.7]} 40. Bxg6+ {[%clk 0:00:24.5]}
40... Kf6 {[%clk 0:00:16.2]} 41. Bd3 {[%clk 0:00:22.5]} 41... c5 {[%clk
0:00:15.8]} 42. Nf5 {[%clk 0:00:20.9]} 42... Bf8 {[%clk 0:00:16]} 43. dxc5+
{[%clk 0:00:20.8]} 43... Kg5 {[%clk 0:00:11.9]} 44. c6 {[%clk 0:00:20.5]} 44...
Rxc6 {[%clk 0:00:09]} 45. Rxc6 {[%clk 0:00:18.7]} 45... Rxc6 {[%clk 0:00:09.9]}
46. Rh1 {[%clk 0:00:16.9]} 46... d4 {[%clk 0:00:07.1]} 47. Be4 {[%clk
0:00:16.5]} 47... Rc7 {[%clk 0:00:04.8]} 48. Bxb7 {[%clk 0:00:16.2]} 48... Kxf5
{[%clk 0:00:04.3]} 49. Ba6 {[%clk 0:00:13.9]} 49... dxe3 {[%clk 0:00:04.6]} 50.
Bd3+ {[%clk 0:00:13.8]} 50... Kg5 {[%clk 0:00:04.6]} 51. Bc1 {[%clk 0:00:12.6]}
51... Bc5 {[%clk 0:00:04.1]} 52. fxe3 {[%clk 0:00:12.6]} 52... Ne5 {[%clk
0:00:03.8]} 53. Be2 {[%clk 0:00:12.8]} 53... Rd7 {[%clk 0:00:04.2]} 54. Rd1
{[%clk 0:00:12.4]} 54... Rxd1 {[%clk 0:00:03.7]} 55. Bxd1 {[%clk 0:00:13.3]}
55... Kf5 {[%clk 0:00:04.6]} 56. Bc2+ {[%clk 0:00:12.8]} 56... Kg5 {[%clk
0:00:05.1]} 57. Be4 {[%clk 0:00:13.3]} 57... Bd6 {[%clk 0:00:04.8]} 58. Bb2
{[%clk 0:00:13.1]} 58... Kf6 {[%clk 0:00:04.5]} 59. Bd4 {[%clk 0:00:13.1]} 59...
Ke6 {[%clk 0:00:04.9]} 60. Bb6 {[%clk 0:00:12.2]} 60... Kd7 {[%clk 0:00:04.3]}
61. Bxa5 {[%clk 0:00:11.8]} 61... Bc5 {[%clk 0:00:04.9]} 62. Kg3 {[%clk
0:00:10.7]} 62... Bxe3 {[%clk 0:00:04.7]} 63. Bxb4 {[%clk 0:00:11.1]} 63... Bb6
{[%clk 0:00:03.4]} 64. Bc3 {[%clk 0:00:10.8]} 64... Bc7 {[%clk 0:00:04.3]} 65.
a5 {[%clk 0:00:08.5]} 65... Nc6+ {[%clk 0:00:03.6]} 66. Kxg4 {[%clk 0:00:07.9]}
66... Nxa5 {[%clk 0:00:04.5]} 67. b4 {[%clk 0:00:07.8]} 67... Nc4 {[%clk
0:00:04.8]} 68. Bf5+ {[%clk 0:00:08.2]} 68... Kc6 {[%clk 0:00:04.9]} 69. Bd3
{[%clk 0:00:09.1]} 69... Nd6 {[%clk 0:00:04.2]} 70. Be5 {[%clk 0:00:08.4]} 70...
Nb7 {[%clk 0:00:02.7]} 71. Be4+ {[%clk 0:00:08.3]} 71... Kb6 {[%clk 0:00:03.2]}
72. Bd4+ {[%clk 0:00:08.3]} 72... Ka6 {[%clk 0:00:03]} 73. Bd3# {[%clk
0:00:07.9]} 1-0

[Event "*** SCC Grand Prix: Titled Tuesday Blitz"]
[Site "Chess.com"]
[Date "2020.07.21"]
[Round "4"]
[White "Schack-Hugo"]
[Black "fischercapa"]
[Result "1-0"]
[WhiteElo "2188"]
[BlackElo "2480"]
[TimeControl "180+1"]
[EndTime "10:40:11 PDT"]
[Termination "Schack-Hugo won by resignation"]

1. c3 {[%clk 0:02:59.8]} 1... Nf6 {[%clk 0:02:51.2]} 2. d4 {[%clk 0:03:00.5]}
2... b6 {[%clk 0:02:51.9]} 3. Nf3 {[%clk 0:02:58.2]} 3... Bb7 {[%clk 0:02:52.5]}
4. g3 {[%clk 0:02:56.9]} 4... e6 {[%clk 0:02:47.6]} 5. Bg2 {[%clk 0:02:55.6]}
5... Be7 {[%clk 0:02:48.3]} 6. O-O {[%clk 0:02:53.7]} 6... O-O {[%clk
0:02:48.3]} 7. b3 {[%clk 0:02:41.9]} 7... c5 {[%clk 0:02:47.9]} 8. e3 {[%clk
0:02:38.4]} 8... Qc7 {[%clk 0:02:40.3]} 9. Bb2 {[%clk 0:02:36.6]} 9... d5 {[%clk
0:02:38.9]} 10. Nbd2 {[%clk 0:02:35.2]} 10... Nc6 {[%clk 0:02:38.9]} 11. Rc1
{[%clk 0:02:28.1]} 11... Rfd8 {[%clk 0:02:37]} 12. Qc2 {[%clk 0:02:21.5]} 12...
a5 {[%clk 0:02:24.4]} 13. a4 {[%clk 0:02:14.5]} 13... Rac8 {[%clk 0:02:16.1]}
14. Qb1 {[%clk 0:02:11.3]} 14... h6 {[%clk 0:01:57.3]} 15. Rfd1 {[%clk
0:01:51.6]} 15... Ba6 {[%clk 0:01:11.8]} 16. Ba3 {[%clk 0:01:37.6]} 16... Bf8
{[%clk 0:01:04]} 17. Qa1 {[%clk 0:01:34.6]} 17... Qb8 {[%clk 0:00:31.9]} 18. c4
{[%clk 0:01:23.1]} 18... cxd4 {[%clk 0:00:28.9]} 19. exd4 {[%clk 0:01:13.5]}
19... Nb4 {[%clk 0:00:27.2]} 20. Bxb4 {[%clk 0:01:12.8]} 20... Bxb4 {[%clk
0:00:26.4]} 21. Ne5 {[%clk 0:01:11.8]} 21... dxc4 {[%clk 0:00:17.9]} 22. Nc6
{[%clk 0:01:08]} 22... Rxc6 {[%clk 0:00:18.1]} 23. Bxc6 {[%clk 0:01:08.3]} 23...
c3 {[%clk 0:00:16.5]} 24. Nc4 {[%clk 0:01:07.7]} 24... Qc7 {[%clk 0:00:15.9]}
25. Bg2 {[%clk 0:01:07.2]} 25... Bxc4 {[%clk 0:00:16.5]} 26. Rxc3 {[%clk
0:01:02.9]} 26... Bxc3 {[%clk 0:00:15.1]} 27. Qxc3 {[%clk 0:01:03.8]} 27... Rc8
{[%clk 0:00:15.8]} 28. Rc1 {[%clk 0:01:02.8]} 28... Nd5 {[%clk 0:00:14.6]} 29.
Qb2 {[%clk 0:00:54.1]} 29... Nb4 {[%clk 0:00:13.3]} 30. Rxc4 {[%clk 0:00:53.3]}
30... Qd8 {[%clk 0:00:13.8]} 31. Qc3 {[%clk 0:00:51.7]} 31... Rxc4 {[%clk
0:00:12.8]} 32. bxc4 {[%clk 0:00:51.7]} 32... Qc7 {[%clk 0:00:13.3]} 33. c5
{[%clk 0:00:50]} 33... bxc5 {[%clk 0:00:13.6]} 34. Qxc5 {[%clk 0:00:50.7]} 34...
Qd8 {[%clk 0:00:13]} 35. h4 {[%clk 0:00:47.8]} 35... g6 {[%clk 0:00:12.2]} 36.
h5 {[%clk 0:00:46.9]} 36... gxh5 {[%clk 0:00:12.3]} 37. Qxh5 {[%clk 0:00:45.1]}
37... Qg5 {[%clk 0:00:12.5]} 38. Qxg5+ {[%clk 0:00:43.9]} 38... hxg5 {[%clk
0:00:13.4]} 39. Kf1 {[%clk 0:00:43.9]} 39... Kf8 {[%clk 0:00:14]} 40. Ke2 {[%clk
0:00:43.6]} 40... Ke7 {[%clk 0:00:14.9]} 41. Kd2 {[%clk 0:00:43.7]} 41... Kd6
{[%clk 0:00:15.6]} 42. Kc3 {[%clk 0:00:43.6]} 42... f6 {[%clk 0:00:13.3]} 43.
Kc4 {[%clk 0:00:43.5]} 43... Nc2 {[%clk 0:00:13.2]} 44. Kc3 {[%clk 0:00:30.8]}
44... Ne1 {[%clk 0:00:12]} 45. Be4 {[%clk 0:00:28.5]} 45... f5 {[%clk
0:00:12.7]} 46. Bh1 {[%clk 0:00:24.7]} 46... g4 {[%clk 0:00:13.1]} 47. Kd2
{[%clk 0:00:23.1]} 47... Nf3+ {[%clk 0:00:13.8]} 48. Bxf3 {[%clk 0:00:22.9]}
48... gxf3 {[%clk 0:00:14.4]} 49. Ke3 {[%clk 0:00:21.3]} 49... Kd5 {[%clk
0:00:15.2]} 50. Kd3 {[%clk 0:00:20.7]} 50... Kd6 {[%clk 0:00:14.6]} 51. Kc4
{[%clk 0:00:17.7]} 51... Kc6 {[%clk 0:00:15.3]} 52. Kc3 {[%clk 0:00:14.8]} 52...
Kd5 {[%clk 0:00:16]} 53. Kd3 {[%clk 0:00:15.3]} 53... Kd6 {[%clk 0:00:16.8]} 54.
Ke3 {[%clk 0:00:15.3]} 54... Kd5 {[%clk 0:00:17.1]} 55. Kxf3 {[%clk 0:00:15.7]}
55... Kxd4 {[%clk 0:00:17.9]} 56. Kf4 {[%clk 0:00:16.2]} 56... Kc4 {[%clk
0:00:17.7]} 57. f3 {[%clk 0:00:15.8]} 57... Kb4 {[%clk 0:00:18.3]} 58. g4 {[%clk
0:00:16.2]} 58... Kxa4 {[%clk 0:00:19.2]} 59. g5 {[%clk 0:00:13.9]} 59... Kb3
{[%clk 0:00:19.6]} 60. g6 {[%clk 0:00:14.3]} 60... a4 {[%clk 0:00:20.5]} 61. g7
{[%clk 0:00:13.8]} 61... a3 {[%clk 0:00:21.4]} 62. g8=Q {[%clk 0:00:13.9]} 62...
a2 {[%clk 0:00:22.3]} 63. Qxe6+ {[%clk 0:00:14.2]} 63... Ka3 {[%clk 0:00:23.2]}
64. Qa6+ {[%clk 0:00:13.5]} 64... Kb2 {[%clk 0:00:23.7]} 65. Qb5+ {[%clk
0:00:13.7]} 65... Kc2 {[%clk 0:00:24.1]} 66. Qxf5+ {[%clk 0:00:13.1]} 66... Kb2
{[%clk 0:00:24.3]} 67. Qa5 {[%clk 0:00:12.8]} 67... a1=Q {[%clk 0:00:24.6]} 68.
Qxa1+ {[%clk 0:00:13.7]} 68... Kxa1 {[%clk 0:00:25.3]} 69. Ke5 {[%clk
0:00:14.6]} 1-0